[Event "Early-Titled-Tuesday-Blitz-October-03-2023"]
[Site "Chess.com"]
[Date "2023.10.03"]
[Round "1"]
[White "LoydBlankenship"]
[Black "Der_Balak_3Halak"]
[Result "1-0"]
[WhiteElo "2650"]
[BlackElo "2350"]
[TimeControl "180+1"]
[EndTime "8:06:47 PDT"]
[Termination "LoydBlankenship won by resignation"]

1. e4 {[%clk 0:02:58.4]} 1... e6 {[%clk 0:02:38.5]} 2. d4 {[%clk 0:02:56.8]}
2... d5 {[%clk 0:02:38.6]} 3. Nc3 {[%clk 0:02:57.1]} 3... Nf6 {[%clk 0:02:37.6]}
4. e5 {[%clk 0:02:57.3]} 4... Nfd7 {[%clk 0:02:38.2]} 5. f4 {[%clk 0:02:57.7]}
5... c5 {[%clk 0:02:38.8]} 6. Nf3 {[%clk 0:02:58.6]} 6... Nc6 {[%clk 0:02:38.6]}
7. Be3 {[%clk 0:02:59]} 7... cxd4 {[%clk 0:02:35]} 8. Nxd4 {[%clk 0:02:58.9]}
8... Bc5 {[%clk 0:02:35.6]} 9. Qd2 {[%clk 0:02:59]} 9... a6 {[%clk 0:02:26.2]}
10. O-O-O {[%clk 0:02:57.9]} 10... Qe7 {[%clk 0:02:20.8]} 11. Be2 {[%clk
0:02:57.9]} 11... Nxd4 {[%clk 0:02:16.9]} 12. Bxd4 {[%clk 0:02:57.9]} 12... b5
{[%clk 0:02:17]} 13. Bf3 {[%clk 0:02:57.9]} 13... Bb7 {[%clk 0:02:16.3]} 14. Ne2
{[%clk 0:02:58.2]} 14... Rc8 {[%clk 0:02:13.2]} 15. Kb1 {[%clk 0:02:57.8]} 15...
O-O {[%clk 0:02:09.5]} 16. g4 {[%clk 0:02:58.1]} 16... Bxd4 {[%clk 0:02:06.4]}
17. Nxd4 {[%clk 0:02:57.8]} 17... Nb6 {[%clk 0:02:06.8]} 18. Rhe1 {[%clk
0:02:56]} 18... Nc4 {[%clk 0:02:07.2]} 19. Qd3 {[%clk 0:02:55.3]} 19... Qb4
{[%clk 0:02:03]} 20. Nb3 {[%clk 0:02:44.3]} 20... a5 {[%clk 0:01:55.1]} 21. a3
{[%clk 0:02:44.1]} 21... Qe7 {[%clk 0:01:49.7]} 22. Nd4 {[%clk 0:02:42.1]} 22...
b4 {[%clk 0:01:45.8]} 23. a4 {[%clk 0:02:42.3]} 23... Ba6 {[%clk 0:01:42.7]} 24.
Qb3 {[%clk 0:02:36]} 24... Nb6 {[%clk 0:01:39.2]} 25. Qa2 {[%clk 0:02:30.6]}
25... Qc5 {[%clk 0:01:36]} 26. b3 {[%clk 0:02:29.9]} 26... Rc7 {[%clk 0:01:22]}
27. f5 {[%clk 0:02:29.5]} 27... Re8 {[%clk 0:01:15.6]} 28. Qb2 {[%clk
0:02:28.6]} 28... Nc8 {[%clk 0:01:08.7]} 29. Qc1 {[%clk 0:02:28]} 29... exf5
{[%clk 0:01:04]} 30. gxf5 {[%clk 0:02:26.5]} 30... Rce7 {[%clk 0:01:03.9]} 31.
f6 {[%clk 0:02:15]} 31... Rxe5 {[%clk 0:00:59.7]} 32. Rxe5 {[%clk 0:02:14.7]}
32... Rxe5 {[%clk 0:01:00.6]} 33. Qf4 {[%clk 0:02:12.5]} 33... Qd6 {[%clk
0:00:34.1]} 34. fxg7 {[%clk 0:02:02.9]} 34... Re1 {[%clk 0:00:33.1]} 35. Qd2
{[%clk 0:02:02.3]} 35... Rxd1+ {[%clk 0:00:29.9]} 36. Qxd1 {[%clk 0:02:03.2]}
36... Ne7 {[%clk 0:00:28.2]} 37. Qd2 {[%clk 0:01:58.5]} 37... Bc8 {[%clk
0:00:21.7]} 38. h4 {[%clk 0:01:57.7]} 38... Nf5 {[%clk 0:00:17.2]} 39. Nb5
{[%clk 0:01:56.6]} 39... Qg3 {[%clk 0:00:12.1]} 40. Bxd5 {[%clk 0:01:56.6]}
40... Qg1+ {[%clk 0:00:10.3]} 41. Kb2 {[%clk 0:01:56.2]} 41... Qxg7+ {[%clk
0:00:10.7]} 42. Ka2 {[%clk 0:01:55.6]} 42... Be6 {[%clk 0:00:10.6]} 43. Be4
{[%clk 0:01:53.1]} 43... Ng3 {[%clk 0:00:08]} 44. Bf3 {[%clk 0:01:52.5]} 44...
Nf5 {[%clk 0:00:07.7]} 45. Nc7 {[%clk 0:01:52.3]} 45... Nxh4 {[%clk 0:00:06.5]}
46. Qd8+ {[%clk 0:01:51.2]} 46... Qf8 {[%clk 0:00:06.3]} 47. Qxh4 {[%clk
0:01:51.8]} 47... Qd6 {[%clk 0:00:05.7]} 48. Qg5+ {[%clk 0:01:51.6]} 48... Kf8
{[%clk 0:00:05.2]} 49. Nb5 {[%clk 0:01:50.6]} 49... Qe7 {[%clk 0:00:02.4]} 50.
Qh6+ {[%clk 0:01:48.7]} 50... Kg8 {[%clk 0:00:02.8]} 51. Bh5 {[%clk 0:01:47.5]}
51... Bf5 {[%clk 0:00:02.6]} 52. Qd2 {[%clk 0:01:47.1]} 52... Bg6 {[%clk
0:00:02.9]} 53. Bf3 {[%clk 0:01:46.8]} 53... f5 {[%clk 0:00:02.5]} 54. Bd5+
{[%clk 0:01:47.1]} 54... Kg7 {[%clk 0:00:02.9]} 55. Qd4+ {[%clk 0:01:48]} 55...
Qf6 {[%clk 0:00:03.5]} 56. Qa7+ {[%clk 0:01:48.2]} 56... Kh6 {[%clk 0:00:02.8]}
57. Qxa5 {[%clk 0:01:48.8]} 57... f4 {[%clk 0:00:03]} 58. Qxb4 {[%clk
0:01:49.4]} 58... f3 {[%clk 0:00:03.3]} 59. Qd2+ {[%clk 0:01:50.1]} 59... Qg5
{[%clk 0:00:02.8]} 60. Qxg5+ {[%clk 0:01:49.7]} 60... Kxg5 {[%clk 0:00:03]} 61.
Bxf3 {[%clk 0:01:50.6]} 61... Bxc2 {[%clk 0:00:03.5]} 62. a5 {[%clk 0:01:50.4]}
62... Bd3 {[%clk 0:00:03.9]} 63. a6 {[%clk 0:01:50.1]} 63... Bxb5 {[%clk
0:00:02.5]} 64. a7 {[%clk 0:01:50.7]} 64... Bc6 {[%clk 0:00:02.4]} 65. Bxc6
{[%clk 0:01:50.9]} 1-0

[Event "Early-Titled-Tuesday-Blitz-October-03-2023"]
[Site "Chess.com"]
[Date "2023.10.03"]
[Round "1"]
[White "microbear"]
[Black "SharapovEvgeny"]
[Result "0-1"]
[WhiteElo "2202"]
[BlackElo "2565"]
[TimeControl "180+1"]
[EndTime "8:06:47 PDT"]
[Termination "SharapovEvgeny won by resignation"]

1. e4 {[%clk 0:03:00.9]} 1... c5 {[%clk 0:02:59.9]} 2. Nf3 {[%clk 0:03:00.6]}
2... d6 {[%clk 0:03:00.1]} 3. d4 {[%clk 0:03:00.8]} 3... cxd4 {[%clk 0:03:00.2]}
4. Nxd4 {[%clk 0:03:01.7]} 4... Nf6 {[%clk 0:03:00.1]} 5. Nc3 {[%clk 0:03:01.8]}
5... Nc6 {[%clk 0:03:00.2]} 6. h3 {[%clk 0:03:00]} 6... e5 {[%clk 0:02:57]} 7.
Nde2 {[%clk 0:02:59.7]} 7... Be7 {[%clk 0:02:55.4]} 8. g4 {[%clk 0:02:59.1]}
8... Be6 {[%clk 0:02:54.2]} 9. Bg2 {[%clk 0:02:59.2]} 9... O-O {[%clk
0:02:53.4]} 10. O-O {[%clk 0:02:59.4]} 10... h6 {[%clk 0:02:52.8]} 11. Be3
{[%clk 0:02:57.7]} 11... a6 {[%clk 0:02:52]} 12. Nd5 {[%clk 0:02:57.7]} 12...
Bxd5 {[%clk 0:02:49.2]} 13. exd5 {[%clk 0:02:58.6]} 13... Nb8 {[%clk 0:02:47.5]}
14. c4 {[%clk 0:02:52.7]} 14... Nbd7 {[%clk 0:02:47.1]} 15. b3 {[%clk
0:02:50.6]} 15... a5 {[%clk 0:02:46.4]} 16. Ng3 {[%clk 0:02:49]} 16... Re8
{[%clk 0:02:46]} 17. Qd2 {[%clk 0:02:43.2]} 17... Bf8 {[%clk 0:02:45.4]} 18.
Rae1 {[%clk 0:02:38.3]} 18... Qc7 {[%clk 0:02:36.7]} 19. Rc1 {[%clk 0:02:15.1]}
19... Nc5 {[%clk 0:02:35.8]} 20. Bxc5 {[%clk 0:02:11.9]} 20... Qxc5 {[%clk
0:02:35.4]} 21. Ne4 {[%clk 0:02:11.3]} 21... Nxe4 {[%clk 0:02:35.2]} 22. Bxe4
{[%clk 0:02:11.4]} 22... g6 {[%clk 0:02:33.9]} 23. Rc3 {[%clk 0:01:48.9]} 23...
Bg7 {[%clk 0:02:33.2]} 24. Rfc1 {[%clk 0:01:47.5]} 24... Rf8 {[%clk 0:02:31.3]}
25. Rf3 {[%clk 0:01:44.9]} 25... Rac8 {[%clk 0:02:21.8]} 26. Qe3 {[%clk
0:01:42.6]} 26... Qxe3 {[%clk 0:02:16.8]} 27. fxe3 {[%clk 0:01:43.5]} 27... b5
{[%clk 0:02:15.4]} 28. Bd3 {[%clk 0:01:35.4]} 28... bxc4 {[%clk 0:02:11.8]} 29.
Rxc4 {[%clk 0:01:26.6]} 29... Rxc4 {[%clk 0:02:10.7]} 30. Bxc4 {[%clk
0:01:25.8]} 30... f5 {[%clk 0:02:08]} 31. gxf5 {[%clk 0:01:23.3]} 31... gxf5
{[%clk 0:02:07.8]} 32. e4 {[%clk 0:01:04.8]} 32... f4 {[%clk 0:01:58.9]} 33. Rf1
{[%clk 0:01:03.5]} 33... Bf6 {[%clk 0:01:57.6]} 34. Kf2 {[%clk 0:00:59.9]} 34...
Bd8 {[%clk 0:01:56.1]} 35. Rg1+ {[%clk 0:00:59.3]} 35... Kf7 {[%clk 0:01:56.2]}
36. Kf3 {[%clk 0:00:59.7]} 36... Bb6 {[%clk 0:01:55.8]} 37. Rg2 {[%clk
0:00:58.8]} 37... Bc5 {[%clk 0:01:51.3]} 38. Bb5 {[%clk 0:00:58.8]} 38... Rb8
{[%clk 0:01:47.4]} 39. a4 {[%clk 0:00:58.8]} 39... Kf6 {[%clk 0:01:40.4]} 40.
Rg4 {[%clk 0:00:57.8]} 40... h5 {[%clk 0:01:35.9]} 41. Rg2 {[%clk 0:00:58]}
41... Rc8 {[%clk 0:01:30.5]} 42. Bc6 {[%clk 0:00:57.2]} 42... Rb8 {[%clk
0:01:29.9]} 43. Bb5 {[%clk 0:00:57.6]} 43... Bd4 {[%clk 0:01:26.7]} 44. Rc2
{[%clk 0:00:56.5]} 44... Rg8 {[%clk 0:01:21.9]} 45. Rg2 {[%clk 0:00:56.5]} 45...
Rc8 {[%clk 0:01:18.8]} 46. Bc6 {[%clk 0:00:55.2]} 46... Rb8 {[%clk 0:01:18.7]}
47. Bb5 {[%clk 0:00:55.5]} 47... Bc5 {[%clk 0:01:16.5]} 48. Rc2 {[%clk
0:00:54.4]} 48... Kg5 {[%clk 0:01:12.8]} 49. Rc3 {[%clk 0:00:43.3]} 49... Kh4
{[%clk 0:01:12.3]} 50. Bd7 {[%clk 0:00:43]} 50... Rb4 {[%clk 0:01:10]} 51. Bf5
{[%clk 0:00:41.3]} 51... Rd4 {[%clk 0:01:06.3]} 52. Be6 {[%clk 0:00:41.2]} 52...
Rd2 {[%clk 0:01:04.5]} 53. Rxc5 {[%clk 0:00:34.2]} 53... dxc5 {[%clk 0:01:04.5]}
54. Bc8 {[%clk 0:00:25]} 54... Rd3+ {[%clk 0:01:02.4]} 0-1

[Event "Early-Titled-Tuesday-Blitz-October-03-2023"]
[Site "Chess.com"]
[Date "2023.10.03"]
[Round "1"]
[White "OchsenfroschGambit"]
[Black "grzechu96"]
[Result "0-1"]
[WhiteElo "2348"]
[BlackElo "2653"]
[TimeControl "180+1"]
[EndTime "8:06:50 PDT"]
[Termination "grzechu96 won by checkmate"]

1. d4 {[%clk 0:02:55.3]} 1... d5 {[%clk 0:02:57.2]} 2. c4 {[%clk 0:02:52.8]}
2... e6 {[%clk 0:02:56.4]} 3. Nc3 {[%clk 0:01:23.6]} 3... c6 {[%clk 0:02:55.5]}
4. e4 {[%clk 0:01:23]} 4... dxe4 {[%clk 0:02:55.3]} 5. Nxe4 {[%clk 0:01:22.3]}
5... Bb4+ {[%clk 0:02:55.2]} 6. Bd2 {[%clk 0:01:22.6]} 6... Qxd4 {[%clk
0:02:50.2]} 7. Bxb4 {[%clk 0:01:22.5]} 7... Qxe4+ {[%clk 0:02:50.5]} 8. Ne2
{[%clk 0:01:22.8]} 8... Na6 {[%clk 0:02:37.8]} 9. Bf8 {[%clk 0:01:22.6]} 9...
Ne7 {[%clk 0:02:15.5]} 10. Bxg7 {[%clk 0:01:18.5]} 10... Nb4 {[%clk 0:01:55.2]}
11. Bxh8 {[%clk 0:01:13.8]} 11... Nd3+ {[%clk 0:01:48]} 12. Kd2 {[%clk
0:01:11.8]} 12... Nxf2 {[%clk 0:01:48.6]} 13. Qe1 {[%clk 0:00:40.9]} 13... Nxh1
{[%clk 0:01:27.6]} 14. Nc3 {[%clk 0:00:38.9]} 14... Qf4+ {[%clk 0:01:23.8]} 15.
Kc2 {[%clk 0:00:33.3]} 15... Nf2 {[%clk 0:01:13.3]} 16. Be5 {[%clk 0:00:17.7]}
16... Qf5+ {[%clk 0:01:12]} 17. Kb3 {[%clk 0:00:16]} 17... Ng6 {[%clk
0:01:05.6]} 18. Bg3 {[%clk 0:00:15.5]} 18... Nd3 {[%clk 0:00:59.1]} 19. Bxd3
{[%clk 0:00:15.8]} 19... Qxd3 {[%clk 0:01:00]} 20. Rd1 {[%clk 0:00:15.8]} 20...
Qf5 {[%clk 0:00:58.3]} 21. Qd2 {[%clk 0:00:15.5]} 21... Kf8 {[%clk 0:00:47.2]}
22. Qd8+ {[%clk 0:00:13.7]} 22... Kg7 {[%clk 0:00:47.8]} 23. a3 {[%clk
0:00:13.7]} 23... b5 {[%clk 0:00:47.2]} 24. Bf2 {[%clk 0:00:10.6]} 24... bxc4+
{[%clk 0:00:43.7]} 25. Ka2 {[%clk 0:00:11.2]} 25... e5 {[%clk 0:00:42.4]} 26.
Bc5 {[%clk 0:00:09.4]} 26... Rb8 {[%clk 0:00:24.1]} 27. Qc7 {[%clk 0:00:08.8]}
27... Rb7 {[%clk 0:00:20.3]} 28. Qxc6 {[%clk 0:00:08.5]} 28... Qc2 {[%clk
0:00:18.5]} 29. Rd8 {[%clk 0:00:07]} 29... Qxb2# {[%clk 0:00:18.3]} 0-1

[Event "Early-Titled-Tuesday-Blitz-October-03-2023"]
[Site "Chess.com"]
[Date "2023.10.03"]
[Round "1"]
[White "MathiasWomacka"]
[Black "CixPer1968"]
[Result "1-0"]
[WhiteElo "2566"]
[BlackElo "2202"]
[TimeControl "180+1"]
[EndTime "8:06:52 PDT"]
[Termination "MathiasWomacka won on time"]

1. e4 {[%clk 0:02:59.2]} 1... c5 {[%clk 0:02:58.4]} 2. Nf3 {[%clk 0:02:59.1]}
2... d6 {[%clk 0:02:56.7]} 3. d4 {[%clk 0:02:59.6]} 3... cxd4 {[%clk 0:02:56.6]}
4. Nxd4 {[%clk 0:03:00.4]} 4... Nf6 {[%clk 0:02:56.5]} 5. Nc3 {[%clk 0:03:00.9]}
5... g6 {[%clk 0:02:56.5]} 6. Be3 {[%clk 0:02:59.9]} 6... Bg7 {[%clk 0:02:54.1]}
7. f3 {[%clk 0:03:00.2]} 7... O-O {[%clk 0:02:53.5]} 8. Qd2 {[%clk 0:03:00.8]}
8... Nc6 {[%clk 0:02:53.5]} 9. O-O-O {[%clk 0:03:01.2]} 9... d5 {[%clk
0:02:52.3]} 10. exd5 {[%clk 0:03:02.1]} 10... Nxd5 {[%clk 0:02:52.1]} 11. Nxc6
{[%clk 0:03:01.7]} 11... bxc6 {[%clk 0:02:51.7]} 12. Bd4 {[%clk 0:03:02.2]}
12... Bxd4 {[%clk 0:02:51]} 13. Qxd4 {[%clk 0:03:01.7]} 13... Qb6 {[%clk
0:02:50.8]} 14. Na4 {[%clk 0:03:01.3]} 14... Qa5 {[%clk 0:02:50.1]} 15. b3
{[%clk 0:03:00.5]} 15... Be6 {[%clk 0:02:49.6]} 16. Bc4 {[%clk 0:02:03.1]} 16...
Rfd8 {[%clk 0:02:45.4]} 17. Qc5 {[%clk 0:02:02.7]} 17... Qc7 {[%clk 0:02:00.7]}
18. g3 {[%clk 0:02:01.2]} 18... Rab8 {[%clk 0:01:56.2]} 19. Rhe1 {[%clk
0:01:55]} 19... Qd6 {[%clk 0:01:14.7]} 20. Kb2 {[%clk 0:01:09.9]} 20... a5
{[%clk 0:00:43.5]} 21. f4 {[%clk 0:01:02.8]} 21... Bg4 {[%clk 0:00:35.7]} 22.
Rd2 {[%clk 0:00:56.5]} 22... Qf6+ {[%clk 0:00:34.6]} 23. Qd4 {[%clk 0:00:51.3]}
23... Ne3 {[%clk 0:00:06.9]} 24. Qxf6 {[%clk 0:00:44.5]} 24... Nxc4+ {[%clk
0:00:06.1]} 25. Kc3 {[%clk 0:00:43.6]} 25... exf6 {[%clk 0:00:04.3]} 26. Rxd8+
{[%clk 0:00:43.3]} 26... Rxd8 {[%clk 0:00:04.9]} 27. Kxc4 {[%clk 0:00:43.6]}
27... Rd2 {[%clk 0:00:02]} 28. c3 {[%clk 0:00:17.1]} 1-0

[Event "Early-Titled-Tuesday-Blitz-October-03-2023"]
[Site "Chess.com"]
[Date "2023.10.03"]
[Round "1"]
[White "Mr_ruthless"]
[Black "Sethu0025"]
[Result "0-1"]
[WhiteElo "2477"]
[BlackElo "2855"]
[TimeControl "180+1"]
[EndTime "8:06:53 PDT"]
[Termination "Sethu0025 won by resignation"]

1. e4 {[%clk 0:03:00.9]} 1... c5 {[%clk 0:02:59]} 2. Nf3 {[%clk 0:03:00.6]} 2...
d6 {[%clk 0:02:59.1]} 3. d4 {[%clk 0:03:01.3]} 3... cxd4 {[%clk 0:03:00]} 4.
Nxd4 {[%clk 0:03:02.2]} 4... Nf6 {[%clk 0:03:00.4]} 5. f3 {[%clk 0:03:02.8]}
5... Nc6 {[%clk 0:02:59.4]} 6. c4 {[%clk 0:03:00.2]} 6... Qb6 {[%clk 0:02:46.8]}
7. Nc2 {[%clk 0:02:57.3]} 7... g6 {[%clk 0:02:37.4]} 8. Nc3 {[%clk 0:02:34.5]}
8... Bg7 {[%clk 0:02:36.3]} 9. Qd2 {[%clk 0:02:03.3]} 9... O-O {[%clk
0:02:30.6]} 10. b3 {[%clk 0:01:43]} 10... a5 {[%clk 0:02:13.1]} 11. Na4 {[%clk
0:01:37.5]} 11... Qc7 {[%clk 0:02:05.4]} 12. Bb2 {[%clk 0:01:37.6]} 12... Bd7
{[%clk 0:01:58.7]} 13. Be2 {[%clk 0:01:32.1]} 13... Nb4 {[%clk 0:01:52.5]} 14.
Nc3 {[%clk 0:01:24.8]} 14... Qb6 {[%clk 0:01:45.5]} 15. Nxb4 {[%clk 0:01:22.8]}
15... axb4 {[%clk 0:01:42.7]} 16. Nd5 {[%clk 0:01:18.7]} 16... Nxd5 {[%clk
0:01:40.7]} 17. exd5 {[%clk 0:01:10.9]} 17... Bxb2 {[%clk 0:01:18.9]} 18. Qxb2
{[%clk 0:01:11.8]} 18... Ra3 {[%clk 0:01:19.3]} 19. h4 {[%clk 0:00:53.7]} 19...
Rfa8 {[%clk 0:01:18.8]} 20. h5 {[%clk 0:00:54]} 20... Qe3 {[%clk 0:01:18.3]} 21.
hxg6 {[%clk 0:00:54.4]} 21... fxg6 {[%clk 0:01:17.8]} 22. Kf1 {[%clk 0:00:51.4]}
22... Bf5 {[%clk 0:01:10.5]} 23. g4 {[%clk 0:00:38.2]} 23... Bd3 {[%clk
0:01:08.4]} 24. Rh2 {[%clk 0:00:31.7]} 24... Qxf3+ {[%clk 0:01:06.3]} 25. Rf2
{[%clk 0:00:31.6]} 25... Bxe2+ {[%clk 0:01:04.2]} 26. Ke1 {[%clk 0:00:22.4]}
26... Qh1+ {[%clk 0:00:52.3]} 27. Kxe2 {[%clk 0:00:17.6]} 27... Qxa1 {[%clk
0:00:52.6]} 28. Qxa1 {[%clk 0:00:17.8]} 28... Rxa2+ {[%clk 0:00:51.9]} 29. Qxa2
{[%clk 0:00:18.2]} 29... Rxa2+ {[%clk 0:00:52.7]} 30. Ke3 {[%clk 0:00:18.7]}
30... Rxf2 {[%clk 0:00:51.5]} 31. Kxf2 {[%clk 0:00:19.6]} 31... Kg7 {[%clk
0:00:51.9]} 32. Kf3 {[%clk 0:00:11.6]} 32... Kf6 {[%clk 0:00:51.7]} 33. Kf4
{[%clk 0:00:12.2]} 33... h6 {[%clk 0:00:51.8]} 34. Kf3 {[%clk 0:00:11.8]} 34...
Kg5 {[%clk 0:00:51.5]} 35. Kg3 {[%clk 0:00:12.3]} 35... b6 {[%clk 0:00:51.7]}
36. Kf3 {[%clk 0:00:12.2]} 36... Kh4 {[%clk 0:00:45.5]} 37. Kf4 {[%clk
0:00:12.4]} 37... Kh3 {[%clk 0:00:45.8]} 38. Kf3 {[%clk 0:00:12]} 38... g5
{[%clk 0:00:45.8]} 0-1

[Event "Early-Titled-Tuesday-Blitz-October-03-2023"]
[Site "Chess.com"]
[Date "2023.10.03"]
[Round "1"]
[White "LikeWater"]
[Black "Ariadna_Atreides"]
[Result "1-0"]
[WhiteElo "2571"]
[BlackElo "2207"]
[TimeControl "180+1"]
[EndTime "8:06:55 PDT"]
[Termination "LikeWater won on time"]

1. d4 {[%clk 0:03:00]} 1... Nf6 {[%clk 0:02:59.4]} 2. Nf3 {[%clk 0:02:57]} 2...
e6 {[%clk 0:02:58.5]} 3. Bg5 {[%clk 0:02:53.9]} 3... d5 {[%clk 0:02:56.7]} 4. e3
{[%clk 0:02:47.8]} 4... Nbd7 {[%clk 0:02:54.3]} 5. Nbd2 {[%clk 0:02:46.6]} 5...
h6 {[%clk 0:02:54.1]} 6. Bh4 {[%clk 0:02:44]} 6... Bd6 {[%clk 0:02:49.2]} 7. Bd3
{[%clk 0:02:41.4]} 7... O-O {[%clk 0:02:45.4]} 8. c3 {[%clk 0:02:37.7]} 8... c6
{[%clk 0:02:38.6]} 9. Qe2 {[%clk 0:02:31.3]} 9... e5 {[%clk 0:02:30.4]} 10. dxe5
{[%clk 0:02:28.7]} 10... Nxe5 {[%clk 0:02:31.3]} 11. Nxe5 {[%clk 0:02:27.7]}
11... Bxe5 {[%clk 0:02:32.2]} 12. O-O {[%clk 0:02:24.9]} 12... Re8 {[%clk
0:02:09.6]} 13. Rae1 {[%clk 0:02:02.5]} 13... Bc7 {[%clk 0:01:50]} 14. f4 {[%clk
0:01:59.9]} 14... Bb6 {[%clk 0:01:45.4]} 15. Qf3 {[%clk 0:01:57.5]} 15... Qd6
{[%clk 0:01:36.4]} 16. Kh1 {[%clk 0:01:55.5]} 16... Bd7 {[%clk 0:01:07.1]} 17.
f5 {[%clk 0:01:39.4]} 17... Rac8 {[%clk 0:00:46.6]} 18. Bg3 {[%clk 0:01:25.4]}
18... Qe7 {[%clk 0:00:45.3]} 19. Bf4 {[%clk 0:01:25.3]} 19... Ne4 {[%clk
0:00:41.4]} 20. Qd1 {[%clk 0:01:18.8]} 20... Bxf5 {[%clk 0:00:32.4]} 21. Bxh6
{[%clk 0:01:18.3]} 21... Nxc3 {[%clk 0:00:29]} 22. bxc3 {[%clk 0:01:09.2]} 22...
Bxd3 {[%clk 0:00:28]} 23. Qg4 {[%clk 0:01:02.8]} 23... Bg6 {[%clk 0:00:13.5]}
24. Bg5 {[%clk 0:01:02.1]} 24... Qe6 {[%clk 0:00:14.1]} 25. Qh4 {[%clk
0:01:02.2]} 25... Rcd8 {[%clk 0:00:08.5]} 26. Nf3 {[%clk 0:01:02.8]} 26... Bc7
{[%clk 0:00:08.3]} 27. Bxd8 {[%clk 0:01:00.7]} 27... Bxd8 {[%clk 0:00:07.8]} 28.
Qg3 {[%clk 0:01:00.4]} 28... Be4 {[%clk 0:00:06.8]} 29. Ng5 {[%clk 0:00:59.7]}
29... Bxg5 {[%clk 0:00:04.8]} 30. Qxg5 {[%clk 0:01:00.6]} 30... g6 {[%clk
0:00:04.1]} 31. Rf4 {[%clk 0:00:58.9]} 31... Kg7 {[%clk 0:00:02.9]} 32. Rh4
{[%clk 0:00:58.1]} 32... Rh8 {[%clk 0:00:02.4]} 33. Rxh8 {[%clk 0:00:58.3]}
33... Kxh8 {[%clk 0:00:03.2]} 34. Rf1 {[%clk 0:00:58.9]} 34... Kg8 {[%clk
0:00:03.6]} 35. Qf4 {[%clk 0:00:58.6]} 35... Bf5 {[%clk 0:00:02]} 36. Kg1 {[%clk
0:00:58.6]} 36... Kg7 {[%clk 0:00:02.2]} 37. Qd4+ {[%clk 0:00:58.5]} 37... Kh7
{[%clk 0:00:01.5]} 38. Qxa7 {[%clk 0:00:59.4]} 38... Be4 {[%clk 0:00:01.6]} 39.
Qd4 {[%clk 0:00:58.1]} 39... Qg4 {[%clk 0:00:01.4]} 40. Rxf7+ {[%clk 0:00:58]}
1-0

[Event "Early-Titled-Tuesday-Blitz-October-03-2023"]
[Site "Chess.com"]
[Date "2023.10.03"]
[Round "1"]
[White "zajka-molotok"]
[Black "lluiss"]
[Result "1-0"]
[WhiteElo "2582"]
[BlackElo "2222"]
[TimeControl "180+1"]
[EndTime "8:06:57 PDT"]
[Termination "zajka-molotok won on time"]

1. e4 {[%clk 0:03:00.9]} 1... e6 {[%clk 0:02:58.5]} 2. d4 {[%clk 0:03:00.5]}
2... d5 {[%clk 0:02:58.4]} 3. exd5 {[%clk 0:03:01.4]} 3... exd5 {[%clk
0:02:57.9]} 4. Nf3 {[%clk 0:03:01.2]} 4... Bd6 {[%clk 0:02:57.2]} 5. Bd3 {[%clk
0:03:00.6]} 5... Ne7 {[%clk 0:02:56.5]} 6. O-O {[%clk 0:02:57.1]} 6... O-O
{[%clk 0:02:56.6]} 7. c3 {[%clk 0:02:51.2]} 7... c6 {[%clk 0:02:53.8]} 8. Qc2
{[%clk 0:02:48]} 8... h6 {[%clk 0:02:48.6]} 9. Re1 {[%clk 0:02:43.5]} 9... Nd7
{[%clk 0:02:33.1]} 10. Nbd2 {[%clk 0:02:41.2]} 10... Qc7 {[%clk 0:02:23.2]} 11.
Nf1 {[%clk 0:02:40.1]} 11... Nf6 {[%clk 0:02:21.1]} 12. Ng3 {[%clk 0:02:32]}
12... Be6 {[%clk 0:02:16.7]} 13. Ne5 {[%clk 0:02:27.7]} 13... Nd7 {[%clk
0:01:39.1]} 14. f4 {[%clk 0:02:26.3]} 14... Nf6 {[%clk 0:01:30.8]} 15. f5 {[%clk
0:02:14.9]} 15... Bd7 {[%clk 0:01:28.9]} 16. Bf4 {[%clk 0:02:12.9]} 16... Rae8
{[%clk 0:01:25.5]} 17. Re2 {[%clk 0:02:03.1]} 17... c5 {[%clk 0:01:04.2]} 18.
Qd2 {[%clk 0:01:45.3]} 18... Qb6 {[%clk 0:00:32.9]} 19. dxc5 {[%clk 0:01:33.9]}
19... Bxc5+ {[%clk 0:00:30.1]} 20. Kh1 {[%clk 0:01:33.9]} 20... Bb5 {[%clk
0:00:24.7]} 21. Rae1 {[%clk 0:01:26.8]} 21... Nc6 {[%clk 0:00:20.3]} 22. Nxc6
{[%clk 0:00:36.5]} 22... bxc6 {[%clk 0:00:17.8]} 23. Be5 {[%clk 0:00:31.3]}
23... Ng4 {[%clk 0:00:10.1]} 24. Bxb5 {[%clk 0:00:20]} 24... Qxb5 {[%clk
0:00:04.1]} 25. Bd4 {[%clk 0:00:19.2]} 25... Bxd4 {[%clk 0:00:03.4]} 26. cxd4
{[%clk 0:00:16.5]} 26... Rxe2 {[%clk 0:00:02.4]} 27. Rxe2 {[%clk 0:00:17.4]}
27... Rb8 {[%clk 0:00:01.7]} 28. h3 {[%clk 0:00:15.2]} 28... Nf6 {[%clk
0:00:01.6]} 29. b3 {[%clk 0:00:14.4]} 1-0